bitfinex/quotes_ETHUSD_20230116
["timestamp","ask_amount","ask_price","bid_price","bid_amount"]
[1673886835017,1.92838079,1551.3,1551.2,3.33878678]
[1673886835353,1.92838079,1551.3,1551.1,6.44682]
[1673886835354,1.92838079,1551.3,1551.1,6.51282]
[1673886835756,2.41218079,1551.3,1551.1,12.95964]
[1673886835980,2.41218079,1551.3,1551.1,6.51282]
[1673886836323,2.41218079,1551.3,1551.1,0.066]
[1673886836539,2.41218079,1551.3,1551.0,6.63534563]
[1673886836757,2.41218079,1551.3,1551.0,13.08265563]
[1673886837065,3.37749404,1551.3,1551.1,9.44689]
[1673886837381,3.37749404,1551.3,1551.1,9.51289]
[1673886837592,2.41218079,1551.3,1551.1,9.51289]
[1673886837798,3.37749404,1551.3,1551.1,9.51289]
[1673886837954,2.41218079,1551.3,1551.1,9.51289]
[1673886838229,3.37749404,1551.3,1551.1,9.51289]
[1673886838485,3.37749404,1551.3,1551.1,3.066]
[1673886838728,3.37749404,1551.3,1551.1,6.27278678]
[1673886838954,3.37749404,1551.3,1551.1,6.33878678]
[1673886840865,4.0129708,1551.2,1551.1,3.066]
[1673886841157,4.0129708,1551.2,1551.0,3.18803563]
[1673886841348,2.41310034,1551.2,1551.0,6.39482241]
[1673886841544,4.01296653,1551.2,1551.0,6.46082241]
[1673886842013,1.2288,1551.1,1551.0,6.46082241]
[1673886842167,0.4838,1551.1,1551.0,6.46082241]
[1673886842368,0.96531325,1551.1,1551.0,6.46082241]
[1673886842583,2.89690034,1551.2,1551.0,5.50090127]
[1673886842901,2.56519005,1551.1,1551.0,5.50090127]
[1673886843104,2.56519005,1551.1,1551.0,2.22811449]
[1673886843336,2.96290034,1551.2,1551.0,2.16211449]
[1673886843573,2.89690034,1551.2,1551.0,2.16211449]
[1673886843863,1.44911325,1551.2,1551.0,2.16211449]
[1673886844170,0.96531325,1551.1,1551.0,2.16211449]
[1673886844452,2.56522057,1551.1,1551.0,2.16211449]
[1673886845721,2.56522057,1551.1,1550.9,3.0]
[1673886845967,0.96531325,1551.1,1550.9,6.27278678]
[1673886846307,0.96531325,1551.1,1550.9,6.33878678]
[1673886846520,2.56521648,1551.1,1550.9,6.33878678]
[1673886847988,0.96531325,1551.1,1550.9,6.33878678]
[1673886848240,2.96290034,1551.2,1550.9,6.33878678]
[1673886848370,0.96531325,1551.1,1550.9,6.33878678]
[1673886848581,2.56522644,1551.1,1550.9,12.78657678]
[1673886848791,2.56522644,1551.1,1550.9,19.23415678]
[1673886849248,0.002,1551.1,1550.9,12.78436678]
[1673886849483,1.51511325,1551.2,1551.0,7.72582668]
[1673886849635,3.04894286,1551.2,1551.1,6.44701]
[1673886849849,3.04894286,1551.2,1551.1,12.96002]
[1673886850036,0.4838,1551.2,1551.1,12.96002]
[1673886850911,4.40748113,1551.3,1551.1,25.07566313]
[1673886851146,4.40748113,1551.3,1551.1,16.23280678]
[1673886851147,2.89369404,1551.3,1551.1,16.23280678]
[1673886851553,2.89369404,1551.3,1551.1,9.78579678]
[1673886851723,2.89369404,1551.3,1551.2,12.8928]
[1673886851930,4.49343838,1551.3,1551.2,19.4052]
[1673886852271,4.49343838,1551.3,1551.2,6.5124]
[1673886852841,4.49343838,1551.3,1551.2,0.066]
[1673886853013,4.49343838,1551.3,1551.1,9.71974678]
[1673886853014,4.49343838,1551.3,1551.1,16.23259678]
[1673886853194,4.34148113,1551.3,1551.1,16.23259678]
[1673886853400,2.89369404,1551.3,1551.1,9.78563678]
[1673886853609,4.34148113,1551.3,1551.1,9.78563678]
[1673886854267,4.34148113,1551.3,1551.1,0.062]
[1673886854538,0.4838,1551.2,1551.0,0.066]
[1673886854715,4.89128113,1551.3,1551.0,3.27278678]
[1673886854909,4.82528113,1551.3,1551.0,3.27278678]
[1673886855238,4.82528113,1551.3,1551.0,9.71657505]
[1673886855415,4.82528113,1551.3,1551.0,9.78257505]
[1673886855633,3.37749404,1551.3,1551.1,9.71965678]
[1673886855842,3.37749404,1551.3,1551.1,16.23236678]
[1673886856048,2.41218079,1551.3,1551.1,16.23236678]
[1673886856384,1.92838079,1551.3,1551.1,22.67928678]
[1673886856767,1.92838079,1551.3,1551.1,16.23236678]
[1673886856971,1.92838079,1551.3,1551.2,6.4466]
[1673886857231,1.92838079,1551.3,1551.2,6.5126]
[1673886858509,1.92838079,1551.3,1551.2,0.066]
[1673886858693,1.92838079,1551.3,1551.1,24.30245346]
[1673886859024,2.96290034,1551.4,1551.1,24.30245346]
[1673886859234,1.44911325,1551.4,1551.1,24.30245346]
[1673886859849,4.49657006,1551.4,1551.1,24.30245346]
[1673886860185,2.89690034,1551.4,1551.1,24.30245346]
[1673886860338,1.44911325,1551.4,1551.1,24.30245346]
[1673886861499,4.49657415,1551.4,1551.1,24.30245346]
[1673886861731,2.89690034,1551.4,1551.1,9.78549678]
[1673886862053,2.56504432,1551.3,1551.1,9.78549678]
[1673886862691,2.56504432,1551.3,1551.1,16.23237678]
[1673886862928,2.56504432,1551.3,1551.1,9.78549678]
[1673886863289,0.96531325,1551.3,1551.1,9.78549678]
[1673886863700,2.56503704,1551.3,1551.1,9.78549678]
[1673886864124,2.56503704,1551.3,1551.1,16.23237678]
[1673886864650,2.56503704,1551.3,1551.1,9.78549678]
[1673886865064,2.56503704,1551.3,1551.1,16.23225678]
[1673886865330,0.96531325,1551.3,1551.1,3.33878678]
[1673886865543,4.01283518,1551.3,1551.1,3.27278678]
[1673886865851,0.96531325,1551.2,1551.0,12.96065]
[1673886866068,2.56504809,1551.2,1551.1,3.0]
[1673886867183,0.96531325,1551.2,1551.1,3.0]
[1673886867393,2.56504809,1551.2,1551.1,3.0]
[1673886868662,4.01283518,1551.2,1551.0,9.51344]
[1673886868858,0.96531325,1551.2,1551.0,9.51344]
[1673886869285,4.01291658,1551.2,1551.0,9.51344]
[1673886869511,4.01291658,1551.2,1551.0,15.96088]
[1673886869872,2.41310034,1551.2,1551.0,15.96088]
[1673886870039,2.41310034,1551.2,1551.0,3.066]
[1673886870255,0.96531325,1551.1,1551.0,3.0]
[1673886870652,2.56511863,1551.1,1551.0,3.0]
[1673886872130,3.04759247,1551.1,1551.0,3.0]
[1673886873230,3.53031718,1551.1,1551.0,3.0]
[1673886873545,3.53031718,1551.1,1550.9,3.066]
[1673886873695,1.44913649,1551.0,1550.9,3.0]
[1673886874156,3.04894187,1551.0,1550.9,3.0]
[1673886874375,3.04894187,1551.0,1550.9,1.29345079]
[1673886874768,3.04894187,1551.0,1550.8,19.54113817]
[1673886874905,0.96603859,1550.9,1550.8,22.81392495]
[1673886875550,3.37964829,1550.9,1550.8,0.19635817]
[1673886875755,3.04894187,1550.9,1550.8,0.13035817]
[1673886876011,3.37964829,1550.9,1550.8,0.13035817]
[1673886876175,3.04894187,1550.9,1550.8,0.49293608]
[1673886876387,4.97945367,1550.9,1550.8,0.49293608]
[1673886876598,3.04894187,1550.9,1550.8,0.49293608]
[1673886876809,5.2444175,1550.9,1550.8,0.49293608]
[1673886877060,0.79293966,1550.7,1550.6,0.12203563]
[1673886877228,1.7586295,1550.7,1550.6,0.12203563]
[1673886877436,3.35843488,1550.7,1550.6,0.12203563]
[1673886880057,3.8412798,1550.7,1550.6,0.12203563]
[1673886880852,4.80610957,1550.7,1550.6,0.12203563]
[1673886881212,4.52162871,1550.7,1550.6,0.12203563]
[1673886881427,5.48646538,1550.7,1550.6,0.12203563]
[1673886881743,3.42358171,1550.7,1550.6,0.12203563]
[1673886881985,3.35758171,1550.7,1550.6,0.12203563]
[1673886882713,3.35758171,1550.7,1550.5,12.32119675]
[1673886882929,1.75777633,1550.7,1550.5,15.59398353]
[1673886884110,1.75777633,1550.7,1550.5,9.14461353]
[1673886885457,1.75777633,1550.7,1550.5,5.87182675]
[1673886885657,2.28500744,1550.7,1550.5,0.066]
[1673886885844,2.28500744,1550.7,1550.4,22.54713349]
[1673886886058,2.28500744,1550.7,1550.4,25.81992027]
[1673886888878,2.28500744,1550.7,1550.5,6.44931]
[1673886888879,0.79293966,1550.7,1550.5,6.44931]
[1673886889096,0.79293966,1550.7,1550.6,3.27278678]
[1673886889456,0.79293966,1550.7,1550.6,9.0334235]
[1673886889599,0.79293966,1550.7,1550.6,12.0994235]
[1673886890052,0.79293966,1550.7,1550.6,10.87136913]
[1673886890257,0.79293966,1550.7,1550.6,17.32014913]
[1673886890595,0.79293966,1550.7,1550.6,15.32014913]
[1673886890806,0.79293966,1550.7,1550.6,21.76902913]
[1673886890986,0.79293966,1550.7,1550.6,8.87136913]
[1673886891200,0.79293966,1550.7,1550.6,15.11578678]
[1673886891453,0.79293966,1550.7,1550.6,18.8764235]
[1673886891619,0.79293966,1550.7,1550.6,15.11578678]
[1673886892086,0.79293966,1550.7,1550.6,18.8764235]
[1673886892478,0.12663966,1550.7,1550.6,24.64616262]
[1673886893003,0.12663966,1550.7,1550.6,27.31077888]
[1673886893593,0.12663966,1550.7,1550.6,35.14917888]
[1673886894622,0.12663966,1550.7,1550.6,31.38854216]
[1673886895338,0.12663966,1550.7,1550.6,35.137069]
[1673886896260,0.12663966,1550.7,1550.6,34.784869]
[1673886897825,0.12663966,1550.7,1550.6,31.03634216]
[1673886898827,0.12663966,1550.7,1550.6,34.784869]
[1673886899079,0.12663966,1550.7,1550.6,35.48506216]
[1673886899814,0.12663966,1550.7,1550.6,32.784869]
[1673886900070,0.12663966,1550.7,1550.6,39.233849]
[1673886900256,0.12663966,1550.7,1550.6,32.784869]
[1673886900482,0.12663966,1550.7,1550.6,39.233689]
[1673886900677,0.12663966,1550.7,1550.6,32.784869]
[1673886900888,0.12663966,1550.7,1550.6,29.03434216]
[1673886901248,0.13682966,1550.7,1550.6,29.03634216]
[1673886902493,0.13682966,1550.7,1550.6,32.784869]
[1673886904293,0.13682966,1550.7,1550.6,29.03634216]
[1673886906234,0.13682966,1550.7,1550.6,32.782869]
[1673886906582,0.13682966,1550.7,1550.6,32.784869]
[1673886909929,0.00082966,1550.7,1550.6,32.784869]
[1673886910279,0.00082966,1550.7,1550.6,46.55262566]
[1673886910440,0.00082966,1550.7,1550.6,54.72348915]
[1673886911694,0.00082966,1550.7,1550.6,54.77417915]
[1673886911904,0.066,1551.4,1550.8,6.777]
[1673886912165,1.51706032,1551.5,1551.2,6.44635]
[1673886912349,1.51706032,1551.5,1551.3,6.27278678]
[1673886912690,0.55222365,1551.5,1551.4,1.56669809]
[1673886912967,3.11655175,1551.5,1551.4,1.56669809]
[1673886913421,0.55222365,1551.5,1551.4,8.01222809]
[1673886913737,0.55222365,1551.5,1551.4,11.07822809]
[1673886914157,3.11653731,1551.5,1551.4,11.07822809]
[1673886914366,0.55222365,1551.5,1551.4,11.07822809]
[1673886916782,1.51706032,1551.5,1551.4,23.96937809]
[1673886916959,3.1165709,1551.5,1551.4,23.96937809]
[1673886917230,3.77281942,1551.5,1551.4,3.066]
[1673886917470,4.25651751,1551.5,1551.3,7.0045697]
[1673886917602,2.56167096,1551.4,1551.3,10.27735648]
[1673886917950,2.56167096,1551.4,1551.3,16.72337648]
[1673886918156,2.56167096,1551.4,1551.3,23.16937648]
[1673886918320,0.96216038,1551.4,1551.3,23.16937648]
[1673886919058,3.68516731,1551.5,1551.3,23.16937648]
[1673886919273,1.51438403,1551.5,1551.4,3.0]
[1673886919483,2.96291879,1551.5,1551.4,9.71836678]
[1673886919710,2.96291879,1551.5,1551.4,6.33878678]
[1673886919711,4.07881872,1551.5,1551.4,6.33878678]
[1673886919931,2.63028396,1551.5,1551.4,6.33878678]
[1673886920098,2.63028396,1551.5,1551.4,7.61727346]
[1673886921304,2.97921879,1551.5,1551.4,7.61727346]
[1673886921532,4.57881872,1551.5,1551.4,6.33878678]
[1673886921916,3.61665834,1551.5,1551.4,6.33878678]
[1673886922140,4.57906317,1551.5,1551.4,6.33878678]
[1673886922357,3.13052841,1551.5,1551.4,6.33878678]
[1673886922661,3.13052841,1551.5,1551.4,5.37907184]
[1673886922759,4.57906317,1551.5,1551.4,5.37907184]
[1673886922971,3.13052841,1551.5,1551.4,5.37907184]
[1673886923512,3.13052841,1551.5,1551.4,11.82476184]
[1673886923877,4.57906317,1551.5,1551.4,18.27045184]
[1673886924343,3.61665834,1551.5,1551.4,3.066]
[1673886924559,3.61665834,1551.5,1551.4,3.0]
[1673886925851,5.54803791,1551.5,1551.4,3.0]
[1673886926002,5.61403791,1551.5,1551.4,3.0]
[1673886926426,4.16550315,1551.5,1551.4,3.0]
[1673886926777,4.80589317,1551.5,1551.3,0.066]
[1673886926942,3.5309795,1551.4,1551.2,6.51244]
[1673886927157,2.56319865,1551.3,1551.2,9.78522678]
[1673886927582,4.00859673,1551.3,1551.2,9.78522678]
[1673886928121,4.00859673,1551.3,1551.2,12.78522678]
[1673886928713,3.04499801,1551.3,1551.2,12.78522678]
[1673886929571,3.04499801,1551.3,1551.2,6.33878678]
[1673886929951,4.97637758,1551.3,1551.2,6.33878678]
[1673886930104,4.97637758,1551.3,1551.2,12.78531678]
[1673886930547,3.04499801,1551.3,1551.2,12.78531678]
[1673886931445,3.04499801,1551.3,1551.2,19.23184678]
[1673886932418,4.97637758,1551.3,1551.2,6.33878678]
[1673886932600,4.97637758,1551.3,1551.2,3.066]
[1673886932813,3.5309795,1551.3,1551.2,3.0]
[1673886933130,3.0642447,1551.3,1551.2,3.0]
[1673886933350,4.66384463,1551.3,1551.1,1.05462118]
[1673886933585,5.94481175,1551.2,1550.9,49.53887]
[1673886933756,0.9652697,1551.0,1550.9,9.78636678]
[1673886934229,2.56486963,1551.0,1550.9,9.78636678]
[1673886934606,2.56486963,1551.0,1550.9,3.33878678]
[1673886934829,2.56486963,1551.0,1550.9,3.27278678]
[1673886935051,3.04750448,1551.0,1550.9,3.27278678]
[1673886935227,3.04750448,1551.0,1550.9,6.27278678]
[1673886935439,3.04750448,1551.0,1550.9,6.33878678]
[1673886935981,4.97801925,1551.0,1550.9,3.066]
[1673886936197,5.72389088,1551.0,1550.8,3.066]
[1673886936462,2.56487808,1550.9,1550.8,3.0]
[1673886938008,2.56487808,1550.9,1550.7,0.066]
[1673886938218,1.93153444,1550.8,1550.6,0.066]
[1673886938436,3.44278066,1550.8,1550.6,0.054]
[1673886938605,3.44278066,1550.8,1550.4,13.04336349]
[1673886938606,3.44278066,1550.8,1550.4,19.54708349]
[1673886938810,2.89661575,1550.8,1550.5,3.27278678]
[1673886939023,2.56530812,1550.7,1550.5,3.27278678]
[1673886939231,2.56530812,1550.7,1550.4,19.54708349]
[1673886939487,0.96508131,1550.7,1550.4,16.37015027]
[1673886939702,0.96508131,1550.7,1550.5,3.0]
[1673886939703,2.56537202,1550.7,1550.5,3.0]
[1673886940012,4.03570414,1550.7,1550.5,3.0]
[1673886940224,2.43541343,1550.7,1550.5,3.0]
[1673886940385,0.96508131,1550.7,1550.5,3.0]
[1673886940598,2.56537441,1550.7,1550.5,3.0]
[1673886941489,11.17251575,1550.8,1550.5,3.0]
[1673886942065,2.56539426,1550.7,1550.5,3.0]
[1673886942270,0.002,1550.7,1550.5,3.0]
[1673886942538,2.0,1550.7,1550.5,3.0]
[1673886943069,9.72488131,1550.8,1550.5,3.0]
[1673886943259,11.17251575,1550.8,1550.5,3.0]
[1673886943465,11.72488131,1550.8,1550.5,3.0]
[1673886943682,9.72488131,1550.8,1550.5,3.0]
[1673886943893,11.17251575,1550.8,1550.5,3.0]
[1673886944215,9.72488131,1550.8,1550.5,3.0]
[1673886945117,9.72488131,1550.8,1550.5,9.44949]
[1673886945479,9.72488131,1550.8,1550.5,9.51549]
[1673886946312,12.77829289,1550.8,1550.5,9.51549]
[1673886946563,12.77829289,1550.8,1550.5,3.066]
[1673886946695,14.22592733,1550.8,1550.5,3.0]
[1673886948057,0.96508131,1550.6,1550.5,3.0]
[1673886948306,4.41271575,1550.7,1550.4,3.19804349]
[1673886948480,0.484,1550.6,1550.4,3.13204349]
[1673886949356,1.984,1550.6,1550.4,3.13204349]
[1673886950419,0.484,1550.6,1550.4,3.13204349]
[1673886951209,3.73622937,1550.7,1550.4,9.58172349]
[1673886951210,0.484,1550.7,1550.4,9.58172349]
[1673886951526,0.484,1550.7,1550.4,17.82990412]
[1673886951765,0.5,1550.5,1550.4,11.38022412]
[1673886951940,0.5,1550.5,1550.4,9.64771349]
[1673886952524,0.5,1550.5,1550.4,7.94062368]
[1673886952739,0.5,1550.5,1550.4,6.51567]
[1673886954408,0.5,1550.5,1550.4,9.51567]
[1673886954726,0.5,1550.5,1550.4,0.066]
[1673886955047,0.5,1550.5,1550.3,1.22722283]
[1673886955776,0.5,1550.5,1550.3,6.07366701]
[1673886955996,0.5,1550.5,1550.4,3.27278678]
[1673886956149,0.5,1550.5,1550.4,19.17213678]
[1673886956366,0.5,1550.5,1550.4,12.78841678]
[1673886956726,0.5,1550.5,1550.4,19.23818678]
[1673886956882,0.5,1550.5,1550.4,22.28709448]
[1673886957098,0.5,1550.5,1550.4,15.83732448]
[1673886957947,0.5,1550.5,1550.4,12.78841678]
[1673886958160,0.5,1550.5,1550.4,6.33878678]
[1673886958708,0.5,1550.5,1550.4,12.78871678]
[1673886959102,0.5,1550.5,1550.4,3.066]
[1673886959317,0.5,1550.5,1550.4,3.0]
[1673886960154,0.5,1550.5,1550.4,14.5990438]
[1673886960393,0.5,1550.5,1550.4,14.6650438]
[1673886961345,0.5,1550.5,1550.4,8.2154838]
[1673886961558,0.5,1550.5,1550.4,6.33878678]
[1673886962559,0.5,1550.5,1550.4,5.37851178]
[1673886962804,0.5,1550.5,1550.4,11.82824178]
[1673886963344,0.5,1550.5,1550.4,18.27797178]
[1673886963949,0.5,1550.5,1550.4,11.82824178]
[1673886964310,0.5,1550.5,1550.4,5.37851178]
[1673886969330,0.5,1550.5,1550.4,2.105725]
[1673886969552,0.5,1550.5,1550.3,4.29322283]
[1673886969761,0.5,1550.5,1550.4,3.0]
[1673886970211,0.5,1550.5,1550.3,4.29322283]
[1673886970398,0.5,1550.5,1550.3,4.22722283]
[1673886974518,0.5,1550.5,1550.3,1.22722283]
[1673886975781,0.5,1550.4,1550.3,1.22722283]
[1673886977625,0.5,1550.4,1550.3,1.17722283]
[1673886979126,0.75,1550.4,1550.3,1.17722283]
[1673886979343,4.02278678,1550.4,1550.3,1.17722283]
[1673886979620,3.41155553,1550.1,1550.0,27.50907346]
[1673886979946,7.82387118,1550.1,1550.0,0.066]
[1673886980158,5.88987118,1550.1,1549.8,0.33749565]
[1673886980374,0.96493328,1549.9,1549.8,0.33749565]
[1673886980599,0.96493328,1549.9,1549.8,3.33749565]
[1673886980810,0.96493328,1549.9,1549.8,0.33749565]
[1673886981998,2.96493328,1549.9,1549.8,0.33749565]
[1673886982310,0.96493328,1549.9,1549.8,0.33749565]
[1673886982620,1.66465197,1549.9,1549.8,0.33749565]
[1673886984285,0.96493328,1549.9,1549.8,0.33749565]
[1673886986892,0.96493328,1549.9,1549.8,6.78979565]
[1673886987133,0.96493328,1549.9,1549.8,0.40349565]
[1673886987454,0.96493328,1549.9,1549.8,0.33749565]
[1673886988028,0.96493328,1549.9,1549.8,6.78975565]
[1673886988286,0.96493328,1549.9,1549.8,8.4519967]
[1673886988502,0.96493328,1549.9,1549.8,0.40349565]
[1673886988721,0.96493328,1549.9,1549.8,0.33749565]
[1673886989343,0.96493328,1549.9,1549.8,0.73738199]
[1673886994885,2.56609547,1549.9,1549.8,0.73738199]
[1673886995382,1.60116219,1549.9,1549.8,0.73738199]
[1673886995589,2.05861358,1549.9,1549.8,0.73738199]
[1673886996065,0.75473912,1549.7,1549.6,3.14658746]
[1673886998063,0.75473912,1549.7,1549.6,0.14658746]
[1673886998263,0.75473912,1549.7,1549.6,3.14658746]
[1673886999109,1.08021303,1549.7,1549.6,0.14658746]
[1673886999528,1.08021303,1549.7,1549.4,6.02230102]
[1673886999697,1.08021303,1549.7,1549.4,0.066]
[1673886999905,1.08021303,1549.7,1549.3,18.19119]
[1673887000243,1.08021303,1549.7,1549.3,21.46397678]
[1673887000446,0.1080213,1549.6,1549.3,21.46397678]
[1673887000643,0.1080213,1549.6,1549.4,3.0]
[1673887002169,0.75473912,1549.7,1549.4,3.0]
[1673887002323,0.75473912,1549.7,1549.4,6.22278678]
[1673887002533,0.75473912,1549.7,1549.4,6.28878678]
[1673887002745,0.75473912,1549.7,1549.4,5.32800783]
[1673887003068,0.75473912,1549.7,1549.4,7.32800783]
[1673887003320,0.75473912,1549.7,1549.5,4.00558756]
[1673887003509,0.75473912,1549.7,1549.6,3.27278678]
[1673887004156,0.75473912,1549.7,1549.6,6.27278678]
[1673887004335,0.75473912,1549.7,1549.6,6.33878678]
[1673887007207,0.75473912,1549.7,1549.6,6.28878678]
[1673887007427,0.75473912,1549.7,1549.6,6.99094554]
[1673887011567,0.75473912,1549.7,1549.6,13.76794554]
[1673887011873,0.75473912,1549.7,1549.6,13.76594554]
[1673887012025,0.75473912,1549.7,1549.6,15.76794554]
[1673887014238,0.75473912,1549.7,1549.6,13.76794554]
[1673887014892,0.75473912,1549.7,1549.6,15.76794554]
[1673887015443,1.25473912,1549.7,1549.6,15.76794554]
[1673887019754,1.25473912,1549.7,1549.6,13.76794554]
[1673887021805,1.25473912,1549.7,1549.6,15.76794554]
[1673887263360,5.14034776,1549.5,1549.4,0.1510187]
[1673887263571,5.20634754,1549.5,1549.4,0.1510187]
[1673887263779,4.72637478,1549.5,1549.4,0.1510187]
[1673887264004,4.66037478,1549.5,1549.4,0.1510187]
[1673887264834,5.62427335,1549.5,1549.2,1.58356536]
[1673887265024,5.12799436,1549.4,1549.2,1.58356536]
[1673887265235,1.5923259,1549.4,1549.2,1.58356536]
[1673887265443,3.12805653,1549.4,1549.2,1.58356536]
[1673887265699,1.5263259,1549.4,1549.2,1.58356536]
[1673887266714,0.96389857,1549.3,1549.1,12.18215538]
[1673887266923,2.96389857,1549.3,1549.1,0.20695538]
[1673887267190,3.42146875,1549.3,1549.1,0.14095538]
[1673887267725,3.90586875,1549.3,1549.1,0.14095538]
[1673887267939,2.56580859,1549.2,1549.1,0.14095538]
[1673887268168,2.56580976,1549.2,1549.1,0.14095538]
[1673887268299,3.75239287,1549.2,1549.1,0.14095538]
[1673887268947,1.18653645,1549.2,1549.1,0.14095538]
[1673887269143,0.4844,1549.2,1549.1,0.14095538]
[1673887269352,1.44829857,1549.3,1549.1,0.14095538]
[1673887269732,0.4844,1549.3,1549.1,0.14095538]
[1673887270086,0.4844,1549.4,1549.1,0.14095538]
[1673887270296,3.05001062,1549.4,1549.1,0.14095538]
[1673887270563,0.4844,1549.4,1549.1,0.14095538]
[1673887270775,0.4864,1549.4,1549.1,3.74330341]
[1673887271090,9.71603328,1549.5,1549.2,6.27278678]
[1673887271320,9.71603328,1549.5,1549.2,6.33878678]
[1673887271511,9.23173328,1549.5,1549.2,6.33878678]
[1673887271665,8.26783471,1549.5,1549.3,0.63387868]
[1673887271876,9.23173328,1549.5,1549.3,0.63387868]
[1673887272329,10.67931787,1549.5,1549.2,6.33878678]
[1673887272659,2.56567418,1549.4,1549.2,6.33878678]
[1673887272816,2.56567418,1549.4,1549.2,3.066]
[1673887273029,4.56567418,1549.4,1549.1,3.20695538]
[1673887273290,2.39200792,1549.4,1549.1,3.14095538]
[1673887274662,11.63158831,1549.5,1549.2,3.27278678]
[1673887274816,9.23173328,1549.5,1549.3,6.27278678]
[1673887275026,9.23173328,1549.5,1549.3,0.066]
[1673887275283,10.67931787,1549.5,1549.1,3.14095538]
[1673887275503,14.38860399,1549.5,1549.1,3.14095538]
[1673887275883,0.96389857,1549.4,1549.1,3.14095538]
[1673887276075,14.38860399,1549.5,1549.1,3.14095538]
[1673887276291,11.16361787,1549.5,1549.1,6.41374216]
[1673887276557,11.16361787,1549.5,1549.1,6.47974216]
[1673887276865,2.5656222,1549.4,1549.1,6.47974216]
[1673887277278,0.96389857,1549.4,1549.1,6.47974216]
[1673887277443,10.67931787,1549.5,1549.2,3.27278678]
[1673887277653,10.67931787,1549.5,1549.3,6.27278678]
[1673887277654,9.23173328,1549.5,1549.3,6.27278678]
[1673887277917,9.23173328,1549.5,1549.3,6.33878678]
[1673887278137,9.23173328,1549.5,1549.3,6.97266546]
[1673887278441,1.15093328,1549.5,1549.3,6.97266546]
[1673887278653,1.08493328,1549.5,1549.3,6.97266546]
[1673887279912,4.13415825,1549.5,1549.3,6.97266546]
[1673887280224,1.08493328,1549.5,1549.3,6.97266546]
[1673887281711,0.96389857,1549.4,1549.3,6.97266546]
[1673887281860,2.56555684,1549.4,1549.3,6.97266546]
[1673887282235,0.002,1549.4,1549.3,6.33678678]
[1673887282388,1.08493328,1549.5,1549.3,6.33878678]
[1673887282849,1.08493328,1549.5,1549.3,5.37783399]
[1673887283062,0.12103471,1549.5,1549.4,3.27278678]
[1673887283386,0.12103471,1549.5,1549.4,4.48827018]
[1673887283767,0.12103471,1549.5,1549.4,6.48827018]
[1673887284004,0.12103471,1549.5,1549.4,4.55427018]
[1673887284332,0.12103471,1549.5,1549.4,3.0]
[1673887284333,1.08493328,1549.5,1549.4,3.0]
[1673887284520,1.08493328,1549.5,1549.3,3.066]
[1673887284856,1.08493328,1549.5,1549.3,6.22278678]
[1673887285018,1.08493328,1549.5,1549.3,4.58043844]
[1673887285227,1.08493328,1549.5,1549.3,4.51443844]
[1673887286270,1.08493328,1549.5,1549.4,3.0]
[1673887286484,1.08493328,1549.5,1549.3,4.58043844]
[1673887286730,2.68648987,1549.5,1549.3,4.51443844]
[1673887286919,1.08493328,1549.5,1549.3,4.51443844]
[1673887287142,1.34478507,1549.5,1549.4,3.0]
[1673887287375,1.82847109,1549.5,1549.3,1.30765166]
[1673887287564,4.39433086,1549.5,1549.3,4.24165166]
[1673887287756,4.01348339,1549.4,1549.3,4.24165166]
[1673887288540,3.04923407,1549.4,1549.3,1.24165166]
[1673887288711,3.83275949,1549.4,1549.3,1.24165166]
[1673887289264,3.83275949,1549.4,1549.2,3.0]
[1673887289421,2.56620288,1549.3,1549.2,3.0]
[1673887289635,0.9445534,1549.4,1549.2,2.95]
[1673887289840,0.9325534,1549.4,1549.2,6.22278678]
[1673887290106,2.5342064,1549.4,1549.3,3.27278678]
[1673887290320,0.004,1549.4,1549.3,3.27278678]
[1673887290631,0.12103471,1549.5,1549.3,3.90146546]
[1673887290852,0.12103471,1549.5,1549.4,3.27278678]
[1673887291345,0.12103471,1549.5,1549.4,6.27278678]
[1673887291566,0.12103471,1549.5,1549.4,6.33878678]
[1673887292397,0.12103471,1549.5,1549.4,3.066]
[1673887292398,0.85803471,1549.5,1549.4,3.066]
[1673887292619,4.46637406,1549.5,1549.3,3.066]
[1673887292840,3.04909316,1549.4,1549.3,3.0]
[1673887293148,3.04909316,1549.4,1549.2,3.066]
[1673887293365,3.04909316,1549.4,1549.2,3.0]
[1673887294016,3.04909316,1549.4,1549.2,6.27278678]
[1673887294174,3.04909316,1549.4,1549.2,8.422441]
[1673887294175,1.60155907,1549.4,1549.2,8.422441]
[1673887294545,12.40261213,1549.5,1549.2,8.422441]
[1673887294713,1.60159829,1549.4,1549.2,8.422441]
[1673887294903,3.04913238,1549.4,1549.2,8.422441]
[1673887295119,3.04913238,1549.4,1549.3,0.8422441]
[1673887295649,3.04913238,1549.4,1549.3,4.11503088]
[1673887295894,1.60159829,1549.4,1549.3,7.11503088]
[1673887296101,1.60159829,1549.4,1549.3,7.18103088]
[1673887296272,3.04913238,1549.5,1549.3,9.18103088]
[1673887296481,3.04913238,1549.5,1549.4,7.19088987]
[1673887296688,3.04913238,1549.5,1549.4,7.25688987]
[1673887297165,1.44753409,1549.5,1549.4,7.25688987]
[1673887297323,3.04913238,1549.5,1549.4,7.25688987]
[1673887298758,3.04913238,1549.5,1549.4,14.03388987]
[1673887298970,0.066,1549.6,1549.4,17.96970186]
[1673887299285,3.44377742,1549.8,1549.5,11.84675697]
[1673887299500,1.601198,1549.7,1549.6,13.04978678]
[1673887299811,2.56728204,1549.7,1549.6,13.11578678]
[1673887300275,2.56724511,1549.7,1549.6,13.11578678]
[1673887300485,2.56724511,1549.7,1549.6,14.80706248]
[1673887300941,2.47961813,1549.8,1549.6,14.80706248]
[1673887301152,2.41361813,1549.8,1549.7,5.27278678]
[1673887301365,0.96608404,1549.8,1549.7,8.33878678]
[1673887301580,0.96608404,1549.8,1549.7,17.09649303]
[1673887301769,2.47961813,1549.9,1549.7,17.56483459]
[1673887302077,0.96608404,1549.9,1549.8,13.04978678]
[1673887302324,2.41361813,1549.9,1549.8,13.11578678]
[1673887302706,3.04861257,1549.9,1549.8,13.11578678]
[1673887302916,2.56576578,1549.9,1549.8,14.82543608]
[1673887304318,1.44753409,1549.9,1549.8,6.33878678]
[1673887304690,4.9788559,1549.9,1549.8,6.33878678]
[1673887304908,4.9788559,1549.9,1549.8,4.63080382]
[1673887305166,4.9788559,1549.9,1549.8,4.56480382]
[1673887305722,3.53132181,1549.9,1549.8,5.27556453]
[1673887305854,3.53132181,1549.9,1549.8,3.33878678]
[1673887306058,3.53132181,1549.9,1549.8,3.27278678]
[1673887307371,3.53132181,1549.9,1549.8,6.27278678]
[1673887307585,3.53132181,1549.9,1549.8,6.33878678]
[1673887309224,4.97818329,1549.9,1549.8,6.33878678]